fUST/lending_fUST_20260112
["ID","MTS","AMOUNT","RATE_DAILY","PERIOD"]
[401347219,1768149061594,-6797.13,0.00031232,8]
[401347220,1768149061604,-1576.63,0.00031232,8]
[401347221,1768149061613,-2011.31,0.00031232,8]
[401347222,1768149061623,-850.0,0.00031233,5]
[401347223,1768149061632,-2614.42133355,0.00031398,2]
[401347224,1768149061642,-334.59,0.00031398,30]
[401347225,1768149061651,-2140.41,0.000315,14]
[401347226,1768149061661,-536.72987461,0.00031502,7]
[401347227,1768149061671,-511.42,0.00031506,8]
[401347228,1768149061682,-755.83,0.00031506,8]
[401347229,1768149061692,-500.0,0.00031506,2]
[401347230,1768149061702,-500.0,0.00031506,8]
[401347231,1768149061712,-2769.41,0.00031506,3]
[401347232,1768149061721,-2486.72,0.00031506,8]
[401347233,1768149061731,-16913.26,0.00031506,8]
[401347234,1768149061741,-4899.58,0.00031506,8]
[401347235,1768149061751,-2226.28,0.00031506,8]
[401347236,1768149061761,-3222.62,0.00031506,8]
[401347237,1768149061772,-2536.91,0.00031506,8]
[401347238,1768149061785,-6797.13,0.00031506,8]
[401347239,1768149061797,-1576.63,0.00031506,8]
[401347240,1768149061807,-2011.31,0.00031506,8]
[401347241,1768149061819,-155.57399191,0.0003154,10]
[401347242,1768149061829,-2800.0,0.00031549,2]
[401347243,1768149061840,-13367.01,0.000316,2]
[401347244,1768149061851,-2614.42133355,0.00031625,2]
[401347245,1768149061862,-500.0,0.0003167,120]
[401347246,1768149061873,-500.0,0.0003167,120]
[401347247,1768149061884,-500.0,0.0003167,120]
[401347248,1768149061895,-500.0,0.0003167,120]
[401347249,1768149061907,-500.0,0.0003167,120]
[401347250,1768149061918,-500.0,0.0003167,120]
[401347251,1768149061929,-500.0,0.0003167,120]
[401347252,1768149061945,-500.0,0.0003167,120]
[401347253,1768149061956,-500.0,0.0003167,120]
[401347254,1768149061965,-500.0,0.0003167,120]
[401347255,1768149061979,-500.0,0.0003167,120]
[401347256,1768149061989,-500.0,0.0003167,120]
[401347257,1768149061999,-500.0,0.0003167,120]
[401347258,1768149062009,-500.0,0.0003167,120]
[401347259,1768149062019,-500.0,0.0003167,120]
[401347260,1768149062028,-500.0,0.0003167,120]
[401347261,1768149062039,-500.0,0.0003167,120]
[401347262,1768149062049,-500.0,0.0003167,120]
[401347263,1768149062059,-500.0,0.0003167,120]
[401347264,1768149062069,-500.0,0.0003167,120]
[401347265,1768149062080,-500.0,0.0003167,120]
[401347266,1768149062090,-500.0,0.0003167,120]
[401347267,1768149062101,-500.0,0.0003167,120]
[401347268,1768149062114,-500.0,0.0003167,120]
[401347269,1768149062124,-500.0,0.0003167,120]
[401347270,1768149062134,-500.0,0.0003167,120]
[401347271,1768149062145,-500.0,0.0003167,120]
[401347272,1768149062155,-500.0,0.0003167,120]
[401347273,1768149062165,-500.0,0.0003167,120]
[401347274,1768149062174,-500.0,0.0003167,120]
[401347275,1768149062189,-500.0,0.0003167,120]
[401347276,1768149062198,-500.0,0.0003167,120]
[401347277,1768149062208,-500.0,0.0003167,120]
[401347278,1768149062217,-500.0,0.0003167,120]
[401347279,1768149062227,-500.0,0.0003167,120]
[401347280,1768149062236,-500.0,0.0003167,120]
[401347281,1768149062245,-500.0,0.0003167,120]
[401347282,1768149062253,-500.0,0.0003167,120]
[401347283,1768149062263,-500.0,0.0003167,120]
[401347284,1768149062272,-500.0,0.0003167,120]
[401347285,1768149062281,-500.0,0.0003167,120]
[401347286,1768149062291,-500.0,0.0003167,120]
[401347287,1768149062301,-500.0,0.0003167,120]
[401347288,1768149062311,-639.14,0.0003167,120]
[401347289,1768149062321,-204.270776,0.0003167,31]
[401347290,1768149062331,-157.10616,0.0003167,31]
[401347291,1768149062341,-466.694893,0.0003167,31]
[401347292,1768149062351,-466.694893,0.0003167,31]
[401347293,1768149062361,-466.694893,0.0003167,31]
[401347294,1768149062371,-466.694893,0.0003167,31]
[401347295,1768149062381,-151.0,0.0003167,31]
[401347296,1768149062391,-151.0,0.0003167,31]
[401347297,1768149062401,-151.0,0.0003167,31]
[401347298,1768149062411,-1591.45377303,0.0003169,2]
[401347299,1768149062421,-377.0831682,0.00031699,30]
[401347300,1768149062435,-3693.39235096,0.00031776,2]
[401347301,1768149062445,-5770.92554838,0.00031776,2]
[401347302,1768149062458,-8310.13278967,0.00031776,2]
[401347303,1768149062469,-11311.01407483,0.00031776,2]
[401347304,1768149062479,-511.42,0.0003178,8]
[401347305,1768149062488,-755.83,0.0003178,8]
[401347306,1768149062499,-500.0,0.0003178,2]
[401347307,1768149062508,-500.0,0.0003178,8]
[401347308,1768149062519,-2769.41,0.0003178,3]
[401347309,1768149062530,-2486.72,0.0003178,8]
[401347310,1768149062540,-16913.26,0.0003178,8]
[401347311,1768149062550,-4899.58,0.0003178,8]
[401347312,1768149062559,-2226.28,0.0003178,8]
[401347313,1768149062568,-3222.62,0.0003178,8]
[401347314,1768149062577,-151.0,0.0003178,31]
[401347315,1768149062588,-152.162088,0.0003178,2]
[401347316,1768149062597,-151.0,0.0003178,31]
[401347317,1768149062607,-1324.597958,0.0003178,31]
[401347318,1768149062617,-1324.597958,0.0003178,31]
[401347319,1768149062627,-1324.597958,0.0003178,31]
[401347320,1768149062637,-1638.845663,0.0003178,31]
[401347321,1768149062646,-1324.597958,0.0003178,31]
[401347322,1768149062656,-1638.845663,0.0003178,31]
[401347323,1768149062667,-1638.845663,0.0003178,31]
[401347324,1768149062677,-1638.845663,0.0003178,31]
[401347325,1768149062691,-2536.91,0.0003178,8]
[401347326,1768149062701,-6797.13,0.0003178,8]
[401347327,1768149062711,-165.523557,0.0003178,31]
[401347328,1768149062720,-165.523557,0.0003178,31]
[401347329,1768149062730,-165.523557,0.0003178,31]
[401347330,1768149062740,-165.523557,0.0003178,31]
[401347331,1768149062752,-728.329358,0.0003178,31]
[401347332,1768149062762,-728.329358,0.0003178,31]
[401347333,1768149062771,-728.329358,0.0003178,31]
[401347334,1768149062780,-728.329358,0.0003178,31]
[401347335,1768149062790,-1576.63,0.0003178,8]
[401347336,1768149062800,-154.635334,0.0003178,31]
[401347337,1768149062810,-189.468115,0.0003178,31]
[401347338,1768149062820,-151.0,0.0003178,31]
[401347339,1768149062829,-2011.31,0.0003178,8]
[401347340,1768149062839,-151.0,0.0003178,31]
[401347341,1768149062848,-151.0,0.0003178,31]
[401347342,1768149062858,-151.0,0.0003178,31]
[401347343,1768149062868,-239.604005,0.0003178,31]
[401347344,1768149062877,-950.0,0.00031781,5]
[401347345,1768149062886,-2614.42133355,0.00031781,2]
[401347346,1768149062896,-174.0,0.00031833,7]
[401347347,1768149062905,-601.4752142,0.00031836,30]
[401347348,1768149062915,-601.4752142,0.00031836,30]
[401347349,1768149062925,-601.4752142,0.00031836,30]
[401347350,1768149062938,-601.4752142,0.00031836,30]
[401347351,1768149062948,-601.4752142,0.00031836,30]
[401347352,1768149062958,-1200.5488488,0.00031836,30]
[401347353,1768149062967,-174.0,0.00031885,2]
[401347354,1768149062977,-990.78799569,0.00031939,2]
[401347355,1768149062986,-195.886572,0.00031958,31]
[401347356,1768149062996,-151.0,0.00031958,31]
[401347357,1768149063006,-151.0,0.00031958,7]
[401347358,1768149063015,-151.0,0.00031958,7]
[401347359,1768149063025,-800.0,0.00031966,2]
[401347360,1768149063035,-162.09527137,0.00032,120]
[401347361,1768149063044,-2802.0,0.00032016,2]
[401347362,1768149063054,-800.0,0.00032049,2]
[401347363,1768149063063,-511.42,0.00032054,8]
[401347364,1768149063073,-755.83,0.00032054,8]
[401347365,1768149063083,-629.01311732,0.00032054,2]
[401347366,1768149063093,-151.0,0.00032054,31]
[401347367,1768149063102,-151.0,0.00032054,31]
[401347368,1768149063112,-151.0,0.00032054,31]
[401347369,1768149063121,-500.0,0.00032054,8]
[401347370,1768149063130,-349.055387,0.00032054,31]
[401347371,1768149063139,-349.055387,0.00032054,31]
[401347372,1768149063149,-349.055387,0.00032054,31]
[401347373,1768149063158,-349.055387,0.00032054,31]
[401347374,1768149063248,-2769.41,0.00032054,3]
[401347375,1768149063259,-2486.72,0.00032054,8]
[401347376,1768149063269,-16913.26,0.00032054,8]
[401347377,1768149063278,-4899.58,0.00032054,8]
[401347378,1768149063289,-2226.28,0.00032054,8]
[401347379,1768149063299,-3222.62,0.00032054,8]
[401347380,1768149063309,-2536.91,0.00032054,8]
[401347381,1768149063319,-6797.13,0.00032054,8]
[401347382,1768149063330,-1576.63,0.00032054,8]
[401347383,1768149063340,-2011.31,0.00032054,8]
[401347384,1768149063350,-629.16420479,0.00032074,2]
[401347385,1768149063360,-800.0,0.00032183,2]
[401347386,1768149063370,-2800.0,0.0003219,2]
[401347387,1768149063379,-800.0,0.00032212,2]
[401347388,1768149063389,-2614.42133355,0.0003222,2]
[401347389,1768149063398,-800.0,0.0003225,2]
[401347390,1768149063408,-800.0,0.00032253,2]
[401347391,1768149063418,-511.42,0.00032328,8]
[401347392,1768149063428,-151.0,0.00032328,31]
[401347393,1768149063442,-151.0,0.00032328,31]
[401347394,1768149063452,-151.0,0.00032328,31]
[401347395,1768149063462,-151.0,0.00032328,31]
[401347396,1768149063475,-755.83,0.00032328,8]
[401347397,1768149063485,-151.0,0.00032328,31]
[401347398,1768149063495,-156.461494,0.00032328,31]
[401347399,1768149063506,-221.765393,0.00032328,31]
[401347400,1768149063515,-500.0,0.00032328,8]
[401347401,1768149063525,-2769.41,0.00032328,3]
[401347402,1768149063535,-2486.72,0.00032328,8]
[401347403,1768149063546,-16913.26,0.00032328,8]
[401347404,1768149063556,-4899.58,0.00032328,8]
[401347405,1768149063566,-2226.28,0.00032328,8]
[401347406,1768149063575,-3222.62,0.00032328,8]
[401347407,1768149063585,-2536.91,0.00032328,8]
[401347408,1768149063595,-6797.13,0.00032328,8]
[401347409,1768149063605,-1576.63,0.00032328,8]
[401347410,1768149063614,-2011.31,0.00032328,8]
[401347411,1768149063624,-1050.0,0.00032329,5]
[401347412,1768149063634,-800.0,0.00032332,2]
[401347413,1768149063643,-2614.42133356,0.00032356,2]
[401347414,1768149063653,-5000.0,0.0003237,2]
[401347415,1768149063663,-3171.0,0.000324,120]
[401347416,1768149063673,-556.3,0.00032485,5]
[401347417,1768149063685,-2000.0,0.0003251,7]
[401347418,1768149063695,-174.0,0.00032515,2]
[401347419,1768149063704,-155.5739919,0.00032516,10]
[401347420,1768149063714,-800.0,0.00032573,2]
[401347421,1768149063723,-511.42,0.00032602,8]
[401347422,1768149063735,-151.0,0.00032602,31]
[401347423,1768149063744,-255.738763,0.00032602,31]
[401347424,1768149063754,-151.0,0.00032602,31]
[401347425,1768149063763,-700.258706,0.00032602,31]
[401347426,1768149063773,-700.258706,0.00032602,31]
[401347427,1768149063782,-700.258706,0.00032602,31]
[401347428,1768149063792,-700.258706,0.00032602,31]
[401347429,1768149063801,-755.83,0.00032602,8]
[401347430,1768149063811,-500.0,0.00032602,8]
[401347431,1768149063821,-2769.41,0.00032602,3]
[401347432,1768149063831,-2486.72,0.00032602,8]
[401347433,1768149063841,-16913.26,0.00032602,8]
[401347434,1768149063852,-4899.58,0.00032602,8]
[401347435,1768149063862,-2226.28,0.00032602,8]
[401347436,1768149063871,-3222.62,0.00032602,8]
[401347437,1768149063881,-2536.91,0.00032602,8]
[401347438,1768149063891,-6797.13,0.00032602,8]
[401347439,1768149063901,-1576.63,0.00032602,8]
[401347440,1768149063910,-2011.31,0.00032602,8]
[401347441,1768149063920,-18947.52786216,0.00032609,2]
[401347442,1768149063930,-2699.56613012,0.0003267,7]
[401347443,1768149064265,-3e-08,0.0002414,2]
[401347444,1768149064277,-499.99999997,0.0002414,2]
[401347445,1768149064286,-500.0,0.0002414,2]
[401347446,1768149064296,-2264.10087164,0.00024305,2]
[401347447,1768149064306,-2347.87260389,0.0002436,2]
[401347448,1768149064314,-2077.53319742,0.00030823,2]
[401347449,1768149064323,-1214.63155663,0.0003267,7]
[401347450,1768149064332,-6115.93388555,0.0003267,7]
[401347451,1768149064340,-8798.1378504,0.0003267,7]
[401347452,1768149064349,-500.0,0.0003267,14]
[401347453,1768149064359,-347.0,0.0003267,7]
[401347454,1768149064369,-347.0,0.0003267,7]
[401347455,1768149064379,-347.0,0.0003267,7]
[401347456,1768149064388,-152.0,0.0003267,7]
[401347457,1768149064398,-347.0,0.0003267,7]
[401347458,1768149064408,-152.0,0.0003267,7]
[401347459,1768149064418,-152.0,0.0003267,7]
[401347460,1768149064428,-347.0,0.0003267,7]
[401347461,1768149064442,-166.0,0.0003267,7]
[401347462,1768149064452,-154.66138278,0.0003267,7]
[401347463,1768149064464,-336.0,0.0003267,7]
[401347464,1768149064474,-152.0,0.0003267,7]
[401347465,1768149064483,-166.0,0.0003267,7]
[401347466,1768149064494,-336.0,0.0003267,7]
[401347467,1768149064506,-152.0,0.0003267,7]
[401347468,1768149064515,-166.0,0.0003267,7]
[401347469,1768149064525,-336.0,0.0003267,7]
[401347470,1768149064537,-152.0,0.0003267,7]
[401347471,1768149064547,-347.0,0.0003267,7]
[401347472,1768149064557,-166.0,0.0003267,7]
[401347473,1768149064566,-336.0,0.0003267,7]
[401347474,1768149064576,-152.0,0.0003267,7]
[401347475,1768149064588,-347.0,0.0003267,7]
[401347476,1768149064598,-166.0,0.0003267,7]
[401347477,1768149064608,-336.0,0.0003267,7]
[401347478,1768149064618,-347.0,0.0003267,7]
[401347479,1768149064627,-152.0,0.0003267,7]
[401347480,1768149064637,-166.0,0.0003267,7]
[401347481,1768149064647,-336.0,0.0003267,7]
[401347482,1768149064657,-347.0,0.0003267,7]
[401347483,1768149064666,-284.0,0.0003267,7]
[401347484,1768149064676,-172.0,0.0003267,7]
[401347485,1768149064687,-336.0,0.0003267,7]
[401347486,1768149064697,-151.0,0.0003267,7]
[401347487,1768149064707,-347.0,0.0003267,7]
[401347488,1768149064716,-336.0,0.0003267,7]
[401347489,1768149064726,-151.0,0.0003267,7]
[401347490,1768149064736,-347.0,0.0003267,7]
[401347491,1768149064746,-336.0,0.0003267,7]
[401347492,1768149064756,-347.0,0.0003267,7]
[401347493,1768149064765,-151.0,0.0003267,7]
[401347494,1768149064775,-336.0,0.0003267,7]
[401347495,1768149064864,-347.0,0.0003267,7]
[401347496,1768149064874,-336.0,0.0003267,7]
[401347497,1768149064885,-151.0,0.0003267,7]
[401347498,1768149064894,-347.0,0.0003267,7]
[401347499,1768149064904,-336.0,0.0003267,7]
[401347500,1768149064914,-151.0,0.0003267,7]
[401347501,1768149064925,-347.0,0.0003267,7]
[401347502,1768149064937,-336.0,0.0003267,7]
[401347503,1768149064948,-151.0,0.0003267,7]
[401347504,1768149064958,-347.0,0.0003267,7]
[401347505,1768149064967,-336.0,0.0003267,7]
[401347506,1768149064977,-151.0,0.0003267,7]
[401347507,1768149064986,-347.0,0.0003267,7]
[401347508,1768149064996,-336.0,0.0003267,7]
[401347509,1768149065006,-347.0,0.0003267,7]
[401347510,1768149065016,-151.0,0.0003267,7]
[401347511,1768149065026,-336.0,0.0003267,7]
[401347512,1768149065035,-347.0,0.0003267,7]
[401347513,1768149065045,-151.0,0.0003267,7]
[401347514,1768149065055,-336.0,0.0003267,7]
[401347515,1768149065064,-151.0,0.0003267,7]
[401347516,1768149065073,-347.0,0.0003267,7]
[401347517,1768149065083,-458.79996491,0.0003267,7]
[401347518,1768149065093,-151.0,0.0003267,7]
[401347519,1768149065102,-151.0,0.0003267,7]
[401347520,1768149065112,-347.0,0.0003267,7]
[401347521,1768149065121,-151.0,0.0003267,7]
[401347522,1768149065132,-347.0,0.0003267,7]
[401347523,1768149065142,-151.0,0.0003267,7]
[401347524,1768149065152,-151.0,0.0003267,7]
[401347525,1768149065163,-151.0,0.0003267,7]
[401347526,1768149065173,-347.0,0.0003267,7]
[401347527,1768149065183,-151.0,0.0003267,7]
[401347528,1768149065195,-151.0,0.0003267,7]
[401347529,1768149065204,-347.0,0.0003267,7]
[401347530,1768149065214,-194.94813958,0.0003267,7]
[401347531,1768149065224,-347.0,0.0003267,7]
[401347532,1768149065233,-151.0,0.0003267,7]
[401347533,1768149065243,-151.0,0.0003267,7]
[401347534,1768149065253,-347.0,0.0003267,7]
[401347535,1768149065263,-61.78054724,0.0003267,7]
[401347536,1768149065392,-979.02672324,0.00019681,2]
[401347537,1768149065402,-979.02672324,0.00021806,2]
[401347538,1768149065412,-2434.74389024,0.00024415,2]
[401347539,1768149065421,-2524.82941417,0.0002447,2]
[401347540,1768149065431,-2618.2481025,0.00024525,2]
[401347541,1768149065443,-2715.12328229,0.0002458,2]
[401347542,1768149065453,-2815.58284374,0.00024635,2]
[401347543,1768149065463,-2207.1536234,0.0002469,2]
[401347544,1768149065486,-161.62,0.00012329,2]
[401347545,1768149065496,-712.60578555,0.0002469,2]
[401347546,1768149065506,-731.91871429,0.00024745,2]
[401347547,1768149065516,-89.21945276,0.0003267,7]
[401347548,1768149065526,-347.0,0.0003267,7]
[401347549,1768149065536,-347.0,0.0003267,7]
[401347550,1768149065547,-151.0,0.0003267,7]
[401347551,1768149065557,-347.0,0.0003267,7]
[401347552,1768149065567,-151.0,0.0003267,7]
[401347553,1768149065577,-347.0,0.0003267,7]
[401347554,1768149065587,-151.0,0.0003267,7]
[401347555,1768149065596,-156.67760442,0.0003267,7]
[401347556,1768149065606,-347.0,0.0003267,7]
[401347557,1768149065616,-347.0,0.0003267,7]
[401347558,1768149065625,-226.84929612,0.0003267,7]
[401347559,1768149065635,-1322.38159256,0.0003267,7]
[401347560,1768149067904,-5961.823593,0.0003267,7]
[401347561,1768149067914,-249.21698162,0.0003267,7]
[401347562,1768149067924,-506.93620503,0.0003267,7]
[401347563,1768149067934,-996.86792648,0.0003267,7]
[401347564,1768149067947,-2242.95283459,0.0003267,7]
[401347565,1768149067957,-8330.44144171,0.0003267,2]
[401347566,1768149067971,-318.55232866,0.0003267,2]
[401347567,1768149067983,-2141.85924301,0.0003267,2]
[401347568,1768149067995,-660.112334,0.0003267,2]
[401347569,1768149068007,-2041.08499773,0.0003267,2]
[401347570,1768149068019,-68021.17880944,0.0003267,2]
[401347571,1768149068031,-50744.8341,0.0003267,2]
[401347572,1768149184840,233.7,6.036e-05,2]
[401347573,1768149185321,350.56,6.31e-05,2]
[401347574,1768149185763,126.8776306,6.585e-05,2]
[401347575,1768149185790,340.5323694,6.585e-05,2]
[401347576,1768149186250,584.26,6.859e-05,2]
[401347577,1768149186585,701.11,7.133e-05,2]
[401347578,1768149186996,817.96,7.408e-05,2]
[401347579,1768149187399,934.82,7.682e-05,2]
[401347580,1768149237362,157.0,8.3e-07,2]
[401347581,1768149261370,215.69,6.76e-05,2]
[401347582,1768149261771,287.59,7.054e-05,2]
[401347583,1768149262184,359.49,7.348e-05,2]
[401347584,1768149262619,431.38,7.642e-05,2]
[401347585,1768149344315,166.28,6.126e-05,2]
[401347586,1768149344796,221.7,6.392e-05,2]
[401347587,1768149345193,277.13,6.659e-05,2]
[401347588,1768149345602,332.56,6.925e-05,2]
[401347589,1768149346005,387.98,7.191e-05,2]
[401347590,1768149346464,443.41,7.458e-05,2]
[401347591,1768149346944,498.84,7.724e-05,2]
[401347592,1768149415374,162.56,6.562e-05,2]
[401347593,1768149415785,203.2,6.836e-05,2]
[401347594,1768149416187,243.84,7.109e-05,2]
[401347595,1768149416619,284.48,7.383e-05,2]
[401347596,1768149417024,325.12,7.656e-05,2]
[401347597,1768149479924,1074.76,5.994e-05,2]
[401347598,1768149480602,548.3176306,5.994e-05,2]
[401347599,1768149480625,526.4423694,5.994e-05,2]
[401347600,1768149485128,164.42,6.237e-05,2]
[401347601,1768149485516,219.23,6.509e-05,2]
[401347602,1768149486140,274.03,6.78e-05,2]
[401347603,1768149486415,328.84,7.051e-05,2]
[401347604,1768149487352,383.64,7.322e-05,2]
[401347605,1768149487805,438.45,7.593e-05,2]
[401347607,1768149563686,152.63,5.905e-05,2]
[401347608,1768149564090,228.94,6.174e-05,2]
[401347609,1768149564484,305.25,6.442e-05,2]
[401347610,1768149564931,381.56,6.711e-05,2]
[401347611,1768149565320,457.88,6.979e-05,2]
[401347612,1768149565727,534.19,7.248e-05,2]
[401347613,1768149566154,610.5,7.516e-05,2]
[401347614,1768149603933,348.51,5e-05,2]
[401347615,1768149604845,348.51,5.5e-05,2]
[401347616,1768149605515,348.51,6e-05,2]
[401347617,1768149606135,348.51,6.5e-05,2]
[401347618,1768149606700,348.51,7.1e-05,2]
[401347619,1768149607359,348.51,7.6e-05,2]
[401347621,1768149638597,199.84,5.874e-05,2]
[401347622,1768149638986,299.76,6.141e-05,2]
[401347623,1768149639400,399.69,6.409e-05,2]
[401347624,1768149639806,499.61,6.676e-05,2]
[401347625,1768149640257,599.53,6.943e-05,2]
[401347626,1768149640714,699.45,7.21e-05,2]
[401347627,1768149641122,205.0676306,7.477e-05,2]
[401347628,1768149641146,594.3023694,7.477e-05,2]
[401347629,1768149647105,-501.4778632,7.744e-05,2]
[401347631,1768149654430,-159.83279187,7.744e-05,2]
[401347632,1768149692715,-237.97934493,7.744e-05,2]
[401347633,1768149692739,-202.1878632,7.764e-05,2]
[401347634,1768149714723,175.86,6.442e-05,2]
[401347635,1768149715208,219.83,6.71e-05,2]
[401347636,1768149721164,263.79,6.979e-05,2]
[401347637,1768149721603,307.76,7.247e-05,2]
[401347638,1768149722000,351.72,7.516e-05,2]
[401347639,1768149733350,8086.7476306,7.171e-05,2]
[401347640,1768149733372,713.606188,7.171e-05,2]
[401347641,1768149759877,169.4450261,3.657e-05,2]
[401347642,1768149794619,291.59,6.262e-05,2]
[401347643,1768149795324,437.39,6.547e-05,2]
[401347644,1768149795725,583.19,6.832e-05,2]
[401347645,1768149797795,728.99,7.116e-05,2]
[401347646,1768149798220,874.78,7.401e-05,2]
[401347647,1768149798734,1020.58,7.686e-05,2]
[401347648,1768149859916,186.38536499,0.0002739,120]
[401347649,1768149874319,191.39,6.281e-05,2]
[401347650,1768149874798,287.09,6.567e-05,2]
[401347651,1768149875413,382.78,6.852e-05,2]
[401347652,1768149875847,478.48,7.138e-05,2]
[401347653,1768149875984,574.18,7.423e-05,2]
[401347654,1768149876019,-101.54228523,7.764e-05,2]
[401347655,1768149876152,154.81568131,7.709e-05,2]
[401347656,1768149876174,515.05431869,7.709e-05,2]
[401347659,1768149900991,2111.72,0.0003013,120]
[401347675,1768149950939,188.43,6.562e-05,2]
[401347676,1768149951333,251.25,6.847e-05,2]
[401347677,1768149951768,314.06,7.132e-05,2]
[401347678,1768149952188,376.87,7.417e-05,2]
[401347679,1768149952645,439.68,7.703e-05,2]
[401347686,1768149981211,872.28175352,0.0003013,120]
[401347692,1768150025341,171.3,6.426e-05,2]
[401347693,1768150025760,214.13,6.694e-05,2]
[401347694,1768150026255,256.96,6.962e-05,2]
[401347695,1768150026666,299.78,7.229e-05,2]
[401347696,1768150027189,239.00446721,7.497e-05,2]
[401347697,1768150027212,103.60553279,7.497e-05,2]
[401347703,1768150098470,158.84,6.941e-05,2]
[401347704,1768150098928,185.32,7.208e-05,2]
[401347705,1768150099328,211.79,7.475e-05,2]
[401347732,1768150168166,155.19,7.485e-05,2]
[401347757,1768150184377,-174.59,7.752e-05,2]
[401347759,1768150204681,154.94,5e-05,2]
[401347760,1768150205248,154.94,5.9e-05,2]
[401347761,1768150205815,154.94,6.7e-05,2]
[401347762,1768150206304,154.94,7.6e-05,2]
[401347763,1768150227465,-531.0,7.886e-05,2]
[401347764,1768150227496,-308.44133884,7.887e-05,2]
[401347765,1768150227525,-348.51,8.1e-05,2]
[401347766,1768150227556,-1614.4693413,8.163e-05,2]
[401347767,1768150227916,-4395.16863972,8.163e-05,2]
[401347768,1768150227946,-9.67272056,8.26e-05,2]
[401347769,1768150228160,-1190.32727944,8.26e-05,2]
[401347770,1768150228189,-300.0,8.261e-05,2]
[401347771,1768150228219,-300.0,8.261e-05,2]
[401347772,1768150228248,-300.0,8.261e-05,2]
[401347798,1768150232093,1227.25546484,8.261e-05,2]
[401347799,1768150232132,639.00062102,8.261e-05,2]
[401347801,1768150232181,1227.25546484,8.261e-05,2]
[401347804,1768150232194,-500.0,8.262e-05,2]
[401347806,1768150232205,-500.0,8.262e-05,2]
[401347808,1768150232214,-500.0,8.262e-05,2]
[401347810,1768150232224,-500.0,8.262e-05,2]
[401347811,1768150232234,-483.69509214,8.262e-05,2]
[401347812,1768150232244,-500.0,8.262e-05,2]
[401347813,1768150232254,-500.0,8.262e-05,2]
[401347814,1768150232264,-500.0,8.262e-05,2]
[401347815,1768150232275,-500.0,8.262e-05,2]
[401347816,1768150232285,-500.0,8.262e-05,2]
[401347817,1768150232295,-500.0,8.262e-05,2]
[401347818,1768150232304,-500.0,8.262e-05,2]
[401347819,1768150232315,-500.0,8.262e-05,2]
[401347820,1768150232324,-500.0,8.262e-05,2]
[401347821,1768150232335,-500.0,8.262e-05,2]
[401347822,1768150232345,-500.0,8.262e-05,2]
[401347823,1768150232355,-500.0,8.262e-05,2]
[401347824,1768150232364,-500.0,8.262e-05,2]
[401347825,1768150232374,-500.0,8.262e-05,2]
[401347826,1768150232384,-487.7264902,8.262e-05,2]
[401347827,1768150232394,-500.0,8.262e-05,2]
[401347828,1768150232403,-500.0,8.262e-05,2]
[401347829,1768150232416,-500.0,8.262e-05,2]
[401347830,1768150232430,-500.0,8.262e-05,2]
[401347831,1768150232440,-500.0,8.262e-05,2]
[401347832,1768150232450,-500.0,8.262e-05,2]
[401347833,1768150232459,-500.0,8.262e-05,2]
[401347834,1768150232469,-500.0,8.262e-05,2]
[401347835,1768150232479,-500.0,8.262e-05,2]
[401347836,1768150232489,-500.0,8.262e-05,2]